[Event "Early-Titled-Tuesday-Blitz-September-05-2023"]
[Site "Chess.com"]
[Date "2023.09.05"]
[Round "1"]
[White "Aleksandar-Topalov"]
[Black "sofaceindisguise"]
[Result "0-1"]
[WhiteElo "2362"]
[BlackElo "2661"]
[TimeControl "180+1"]
[EndTime "8:07:49 PDT"]
[Termination "sofaceindisguise won on time"]

1. b3 {[%clk 0:03:00.9]} 1... e5 {[%clk 0:02:58]} 2. Bb2 {[%clk 0:03:00.4]} 2...
Nc6 {[%clk 0:02:57.9]} 3. c4 {[%clk 0:03:00.4]} 3... f5 {[%clk 0:02:53.9]} 4. e3
{[%clk 0:02:59.3]} 4... Nf6 {[%clk 0:02:54.3]} 5. Nf3 {[%clk 0:02:58.9]} 5... d6
{[%clk 0:02:52.5]} 6. d4 {[%clk 0:02:58.9]} 6... e4 {[%clk 0:02:52.6]} 7. d5
{[%clk 0:02:59.2]} 7... exf3 {[%clk 0:02:51.5]} 8. dxc6 {[%clk 0:02:58.9]} 8...
bxc6 {[%clk 0:02:50.3]} 9. Qxf3 {[%clk 0:02:58]} 9... Bd7 {[%clk 0:02:49.1]} 10.
Bd3 {[%clk 0:02:57]} 10... g6 {[%clk 0:02:48.8]} 11. g4 {[%clk 0:02:53.9]} 11...
Bg7 {[%clk 0:02:21.1]} 12. gxf5 {[%clk 0:02:53.4]} 12... O-O {[%clk 0:02:21.2]}
13. Nd2 {[%clk 0:02:49.1]} 13... Nh5 {[%clk 0:02:13.8]} 14. Bxg7 {[%clk
0:02:45.7]} 14... Nxg7 {[%clk 0:02:14.6]} 15. e4 {[%clk 0:02:05.1]} 15... Qf6
{[%clk 0:02:09.6]} 16. O-O-O {[%clk 0:01:56.2]} 16... a5 {[%clk 0:01:59.3]} 17.
Kb1 {[%clk 0:01:33.4]} 17... a4 {[%clk 0:01:58.9]} 18. Qe3 {[%clk 0:01:21.9]}
18... axb3 {[%clk 0:01:56.8]} 19. Nxb3 {[%clk 0:01:22.1]} 19... Rfb8 {[%clk
0:01:55.9]} 20. Bc2 {[%clk 0:01:20.3]} 20... gxf5 {[%clk 0:01:51.2]} 21. e5
{[%clk 0:01:20.4]} 21... Qf7 {[%clk 0:01:29.5]} 22. exd6 {[%clk 0:01:17]} 22...
Qxc4 {[%clk 0:01:24]} 23. dxc7 {[%clk 0:01:14]} 23... Re8 {[%clk 0:01:15.7]} 24.
Rxd7 {[%clk 0:00:52.8]} 24... Rxe3 {[%clk 0:01:13]} 25. Rg1 {[%clk 0:00:53]}
25... Re2 {[%clk 0:00:45.6]} 26. Rgxg7+ {[%clk 0:00:50.4]} 26... Kf8 {[%clk
0:00:45.2]} 27. Rgf7+ {[%clk 0:00:36.2]} 27... Qxf7 {[%clk 0:00:44.3]} 28. Rxf7+
{[%clk 0:00:26.8]} 28... Kxf7 {[%clk 0:00:44.4]} 29. Bxf5 {[%clk 0:00:27]} 29...
Ree8 {[%clk 0:00:32]} 30. Nd4 {[%clk 0:00:16.8]} 30... c5 {[%clk 0:00:22.8]} 31.
Nb5 {[%clk 0:00:16.9]} 31... Ke7 {[%clk 0:00:21.9]} 32. Kb2 {[%clk 0:00:10.6]}
32... Rf8 {[%clk 0:00:18.2]} 33. c8=Q {[%clk 0:00:08.7]} 33... Raxc8 {[%clk
0:00:17.2]} 34. Bxc8 {[%clk 0:00:08.8]} 34... Rxc8 {[%clk 0:00:18.1]} 35. Nc3
{[%clk 0:00:07.3]} 35... Rf8 {[%clk 0:00:17.3]} 36. Ne4 {[%clk 0:00:07.5]} 36...
Rf4 {[%clk 0:00:16.7]} 37. Nxc5 {[%clk 0:00:06.1]} 37... Rxf2+ {[%clk
0:00:16.4]} 38. Kb3 {[%clk 0:00:06.7]} 38... Rxh2 {[%clk 0:00:16.7]} 39. a4
{[%clk 0:00:07.1]} 39... Rh1 {[%clk 0:00:16]} 40. a5 {[%clk 0:00:06.7]} 40...
Kd6 {[%clk 0:00:16.1]} 41. Na4 {[%clk 0:00:06.4]} 41... Kc6 {[%clk 0:00:16]} 42.
Kb4 {[%clk 0:00:05.5]} 42... h5 {[%clk 0:00:16.3]} 43. a6 {[%clk 0:00:04.1]}
43... h4 {[%clk 0:00:16.3]} 44. Ka5 {[%clk 0:00:04.3]} 44... Ra1 {[%clk
0:00:15.7]} 45. a7 {[%clk 0:00:03.7]} 45... Kb7 {[%clk 0:00:16.1]} 0-1

[Event "Early-Titled-Tuesday-Blitz-September-05-2023"]
[Site "Chess.com"]
[Date "2023.09.05"]
[Round "1"]
[White "Genghis_K"]
[Black "JoliyRoger"]
[Result "1-0"]
[WhiteElo "2869"]
[BlackElo "2478"]
[TimeControl "180+1"]
[EndTime "8:07:50 PDT"]
[Termination "Genghis_K won on time"]

1. d4 {[%clk 0:02:53.5]} 1... Nf6 {[%clk 0:02:56.7]} 2. c4 {[%clk 0:02:53.8]}
2... e6 {[%clk 0:02:56.8]} 3. g3 {[%clk 0:02:54.5]} 3... c5 {[%clk 0:02:55.6]}
4. Nf3 {[%clk 0:02:53.8]} 4... cxd4 {[%clk 0:02:55.7]} 5. Nxd4 {[%clk
0:02:54.7]} 5... Nc6 {[%clk 0:02:56.4]} 6. Bg2 {[%clk 0:02:53.1]} 6... Be7
{[%clk 0:02:55.7]} 7. O-O {[%clk 0:02:47.2]} 7... O-O {[%clk 0:02:50.6]} 8. Nc3
{[%clk 0:02:47]} 8... Ne5 {[%clk 0:02:48.8]} 9. b3 {[%clk 0:02:45.8]} 9... a6
{[%clk 0:02:47]} 10. Bf4 {[%clk 0:02:40.7]} 10... Ng6 {[%clk 0:02:45.1]} 11. Be3
{[%clk 0:02:26.9]} 11... d6 {[%clk 0:02:43.7]} 12. h3 {[%clk 0:02:15]} 12... Qc7
{[%clk 0:02:42.9]} 13. Rc1 {[%clk 0:02:02.2]} 13... Rb8 {[%clk 0:02:42.1]} 14.
f4 {[%clk 0:01:58.8]} 14... Re8 {[%clk 0:02:38.9]} 15. Bf2 {[%clk 0:01:39.1]}
15... Bf8 {[%clk 0:02:34.8]} 16. Nc2 {[%clk 0:00:56.7]} 16... b6 {[%clk
0:02:26.9]} 17. Qd2 {[%clk 0:00:56]} 17... Bb7 {[%clk 0:02:16.9]} 18. e4 {[%clk
0:00:56.2]} 18... Rbc8 {[%clk 0:02:12.4]} 19. a4 {[%clk 0:00:56.4]} 19... Nd7
{[%clk 0:02:12.3]} 20. Rb1 {[%clk 0:00:55]} 20... Nc5 {[%clk 0:02:10.7]} 21.
Rfe1 {[%clk 0:00:55.2]} 21... h6 {[%clk 0:02:09.5]} 22. h4 {[%clk 0:00:54.6]}
22... Be7 {[%clk 0:02:08.3]} 23. h5 {[%clk 0:00:55.1]} 23... Nf8 {[%clk
0:02:08.4]} 24. Nd4 {[%clk 0:00:55.8]} 24... Ncd7 {[%clk 0:02:03.6]} 25. g4
{[%clk 0:00:55.3]} 25... Nh7 {[%clk 0:02:02.5]} 26. Bf3 {[%clk 0:00:54.4]} 26...
e5 {[%clk 0:02:02.1]} 27. Nf5 {[%clk 0:00:49.5]} 27... exf4 {[%clk 0:02:02.1]}
28. Nd5 {[%clk 0:00:49.7]} 28... Bxd5 {[%clk 0:02:01.5]} 29. exd5 {[%clk
0:00:49.8]} 29... Ng5 {[%clk 0:01:39.9]} 30. Bg2 {[%clk 0:00:39.7]} 30... Ne5
{[%clk 0:01:24.9]} 31. Qxf4 {[%clk 0:00:32.4]} 31... Nd3 {[%clk 0:01:08.6]} 32.
Qd4 {[%clk 0:00:31.8]} 32... Ne5 {[%clk 0:01:02.7]} 33. Rxe5 {[%clk 0:00:27.1]}
33... dxe5 {[%clk 0:01:02.2]} 34. Qxb6 {[%clk 0:00:27.9]} 34... Bc5 {[%clk
0:00:26.5]} 35. Qxc7 {[%clk 0:00:19.3]} 35... Rxc7 {[%clk 0:00:20.1]} 36. d6
{[%clk 0:00:19.7]} 36... Bxf2+ {[%clk 0:00:17.5]} 37. Kxf2 {[%clk 0:00:20.6]}
37... Rc5 {[%clk 0:00:14.3]} 38. Bd5 {[%clk 0:00:16.1]} 38... Rd8 {[%clk
0:00:10.4]} 39. b4 {[%clk 0:00:13]} 39... Rcc8 {[%clk 0:00:10.5]} 40. Ne7+
{[%clk 0:00:12.8]} 40... Kf8 {[%clk 0:00:10.2]} 41. Nxc8 {[%clk 0:00:13.6]}
41... Rxc8 {[%clk 0:00:11.1]} 42. c5 {[%clk 0:00:13.9]} 42... g6 {[%clk
0:00:09.2]} 43. d7 {[%clk 0:00:11.5]} 43... Rd8 {[%clk 0:00:08.1]} 44. c6 {[%clk
0:00:12.2]} 44... Ke7 {[%clk 0:00:08]} 45. c7 {[%clk 0:00:12.1]} 1-0

[Event "Early-Titled-Tuesday-Blitz-September-05-2023"]
[Site "Chess.com"]
[Date "2023.09.05"]
[Round "1"]
[White "LoaySameer"]
[Black "artooon"]
[Result "0-1"]
[WhiteElo "2532"]
[BlackElo "3052"]
[TimeControl "180+1"]
[EndTime "8:07:53 PDT"]
[Termination "artooon won by resignation"]

1. Nf3 {[%clk 0:03:00.9]} 1... Nf6 {[%clk 0:03:00]} 2. g3 {[%clk 0:03:01.4]}
2... d5 {[%clk 0:03:00.4]} 3. Bg2 {[%clk 0:03:02.1]} 3... c6 {[%clk 0:03:01.1]}
4. O-O {[%clk 0:03:02.7]} 4... Bg4 {[%clk 0:03:00.4]} 5. d3 {[%clk 0:03:03.1]}
5... e6 {[%clk 0:03:01]} 6. Nbd2 {[%clk 0:03:03.7]} 6... Nbd7 {[%clk 0:03:01.3]}
7. h3 {[%clk 0:03:04.4]} 7... Bh5 {[%clk 0:03:01.4]} 8. e4 {[%clk 0:03:04.8]}
8... dxe4 {[%clk 0:03:00.9]} 9. dxe4 {[%clk 0:03:04.9]} 9... e5 {[%clk
0:03:01.1]} 10. Qe2 {[%clk 0:03:02.6]} 10... Qc7 {[%clk 0:03:00.2]} 11. b3
{[%clk 0:03:00.2]} 11... Be7 {[%clk 0:02:48.5]} 12. Bb2 {[%clk 0:03:00.3]} 12...
O-O {[%clk 0:02:48.9]} 13. Nc4 {[%clk 0:02:47.9]} 13... Rfe8 {[%clk 0:02:45]}
14. a4 {[%clk 0:02:37.5]} 14... Bf8 {[%clk 0:02:42.3]} 15. Rad1 {[%clk
0:02:29.9]} 15... h6 {[%clk 0:02:24.4]} 16. g4 {[%clk 0:02:20.4]} 16... Bg6
{[%clk 0:02:24.5]} 17. Nh4 {[%clk 0:02:21]} 17... Bh7 {[%clk 0:02:23.3]} 18. Nf5
{[%clk 0:02:21.4]} 18... Nc5 {[%clk 0:02:22]} 19. Qe3 {[%clk 0:02:12.9]} 19...
Bxf5 {[%clk 0:02:07.4]} 20. exf5 {[%clk 0:02:05.9]} 20... e4 {[%clk 0:02:07.7]}
21. Bxf6 {[%clk 0:01:53.4]} 21... gxf6 {[%clk 0:02:08.6]} 22. a5 {[%clk
0:01:40.7]} 22... b5 {[%clk 0:01:57.6]} 23. Nd2 {[%clk 0:01:14.3]} 23... Qxa5
{[%clk 0:01:53.4]} 24. Nxe4 {[%clk 0:01:00.6]} 24... Nxe4 {[%clk 0:01:36.3]} 25.
Bxe4 {[%clk 0:01:01.5]} 25... Re5 {[%clk 0:01:24.2]} 26. Qf3 {[%clk 0:01:00.2]}
26... Rd8 {[%clk 0:01:20.1]} 27. Bxc6 {[%clk 0:00:44.2]} 27... Bc5 {[%clk
0:01:20.3]} 28. Rxd8+ {[%clk 0:00:39]} 28... Qxd8 {[%clk 0:01:21.2]} 29. Rd1
{[%clk 0:00:39.5]} 29... Qe7 {[%clk 0:01:20.4]} 30. Bxb5 {[%clk 0:00:31.5]}
30... Bxf2+ {[%clk 0:01:16.9]} 31. Qxf2 {[%clk 0:00:28.5]} 31... Rxb5 {[%clk
0:01:17.4]} 32. Re1 {[%clk 0:00:27.5]} 32... Qc7 {[%clk 0:01:17.3]} 33. Re2
{[%clk 0:00:22.9]} 33... Kg7 {[%clk 0:01:17]} 34. Kg2 {[%clk 0:00:21.7]} 34...
a5 {[%clk 0:01:15.5]} 35. Qf3 {[%clk 0:00:20.1]} 35... Rc5 {[%clk 0:01:14.3]}
36. c4 {[%clk 0:00:20]} 36... a4 {[%clk 0:01:14.3]} 37. bxa4 {[%clk 0:00:20.4]}
37... Rxc4 {[%clk 0:01:15]} 38. a5 {[%clk 0:00:21.1]} 38... Rc3 {[%clk
0:01:14.8]} 39. Qf2 {[%clk 0:00:20.3]} 39... Qc6+ {[%clk 0:01:11.3]} 40. Kh2
{[%clk 0:00:20]} 40... Rf3 {[%clk 0:01:11.8]} 41. Qg2 {[%clk 0:00:20.1]} 41...
Qc7+ {[%clk 0:01:12.1]} 42. Kh1 {[%clk 0:00:20.6]} 42... Qc1+ {[%clk 0:01:12.2]}
43. Kh2 {[%clk 0:00:20.3]} 43... Qf4+ {[%clk 0:01:12.7]} 44. Kg1 {[%clk
0:00:20.2]} 44... Rg3 {[%clk 0:01:13]} 45. Rf2 {[%clk 0:00:20]} 45... Qc1+
{[%clk 0:01:11.2]} 46. Kh2 {[%clk 0:00:20.4]} 46... Rxg2+ {[%clk 0:01:11.5]} 47.
Kxg2 {[%clk 0:00:21.3]} 47... Qc6+ {[%clk 0:01:11.6]} 48. Rf3 {[%clk 0:00:21.3]}
48... Qa4 {[%clk 0:01:12.2]} 49. Kg3 {[%clk 0:00:21.4]} 49... Qxa5 {[%clk
0:01:12.3]} 50. Re3 {[%clk 0:00:21.4]} 50... Qd2 {[%clk 0:01:12.2]} 51. Rf3
{[%clk 0:00:20.4]} 51... h5 {[%clk 0:01:12.8]} 52. Rf2 {[%clk 0:00:19.6]} 52...
Qe1 {[%clk 0:01:12.2]} 53. Kf3 {[%clk 0:00:19.4]} 53... Kh6 {[%clk 0:01:12.7]}
54. Rg2 {[%clk 0:00:19.3]} 54... Kg5 {[%clk 0:01:12]} 55. gxh5+ {[%clk
0:00:19.3]} 55... Kxf5 {[%clk 0:01:11.5]} 56. Rg4 {[%clk 0:00:19.8]} 56... Qd1+
{[%clk 0:01:08.4]} 57. Kg3 {[%clk 0:00:20.1]} 57... Ke5 {[%clk 0:01:06.8]} 58.
h6 {[%clk 0:00:15.8]} 58... Qd3+ {[%clk 0:01:06.3]} 59. Kh4 {[%clk 0:00:15.9]}
59... f5 {[%clk 0:01:06.4]} 60. Ra4 {[%clk 0:00:15.1]} 60... Qd8+ {[%clk
0:01:04.1]} 61. Kh5 {[%clk 0:00:15.4]} 61... f4 {[%clk 0:01:03.7]} 62. h7 {[%clk
0:00:13]} 62... f3 {[%clk 0:01:03.5]} 63. Ra5+ {[%clk 0:00:13.5]} 63... Ke4
{[%clk 0:01:03.6]} 64. Ra4+ {[%clk 0:00:13.5]} 64... Ke3 {[%clk 0:01:04]} 65.
Ra3+ {[%clk 0:00:14.1]} 65... Ke2 {[%clk 0:01:04.6]} 66. Ra2+ {[%clk 0:00:14.3]}
66... Kf1 {[%clk 0:01:05.2]} 67. Kh6 {[%clk 0:00:14.5]} 67... Qf6+ {[%clk
0:01:04.7]} 68. Kh5 {[%clk 0:00:14.7]} 68... Qg6+ {[%clk 0:01:05.6]} 69. Kh4
{[%clk 0:00:15]} 69... Qxh7+ {[%clk 0:01:05.9]} 70. Kg3 {[%clk 0:00:15.9]} 70...
Ke1 {[%clk 0:01:01.2]} 71. Kxf3 {[%clk 0:00:11.6]} 71... Qxh3+ {[%clk
0:01:00.9]} 72. Ke4 {[%clk 0:00:11.8]} 72... Qe6+ {[%clk 0:01:01.1]} 73. Kf4
{[%clk 0:00:11.8]} 73... Qxa2 {[%clk 0:01:01.5]} 0-1

[Event "Early-Titled-Tuesday-Blitz-September-05-2023"]
[Site "Chess.com"]
[Date "2023.09.05"]
[Round "1"]
[White "merinasian"]
[Black "m_ezat"]
[Result "1-0"]
[WhiteElo "2431"]
[BlackElo "2713"]
[TimeControl "180+1"]
[EndTime "8:07:53 PDT"]
[Termination "merinasian won on time"]

1. d4 {[%clk 0:03:00.9]} 1... Nf6 {[%clk 0:02:58.6]} 2. Nf3 {[%clk 0:03:00.8]}
2... g6 {[%clk 0:02:56.1]} 3. Bf4 {[%clk 0:02:57.9]} 3... Bg7 {[%clk 0:02:55.6]}
4. e3 {[%clk 0:02:58.2]} 4... O-O {[%clk 0:02:54.2]} 5. h3 {[%clk 0:02:58.6]}
5... d6 {[%clk 0:02:53.7]} 6. Be2 {[%clk 0:02:59.2]} 6... Nfd7 {[%clk
0:02:54.2]} 7. O-O {[%clk 0:02:59]} 7... e5 {[%clk 0:02:54.3]} 8. Bh2 {[%clk
0:02:59.1]} 8... Nc6 {[%clk 0:02:54.7]} 9. c4 {[%clk 0:02:58.9]} 9... Kh8 {[%clk
0:02:53.1]} 10. Nc3 {[%clk 0:02:58.6]} 10... f5 {[%clk 0:02:52]} 11. Rc1 {[%clk
0:02:48.7]} 11... g5 {[%clk 0:02:43.1]} 12. d5 {[%clk 0:02:20.2]} 12... Ncb8
{[%clk 0:02:41.6]} 13. b4 {[%clk 0:02:20.3]} 13... a5 {[%clk 0:02:40.5]} 14. a3
{[%clk 0:02:20.4]} 14... h5 {[%clk 0:02:36.4]} 15. c5 {[%clk 0:02:04.2]} 15...
axb4 {[%clk 0:02:35.3]} 16. axb4 {[%clk 0:02:04]} 16... g4 {[%clk 0:02:35.9]}
17. hxg4 {[%clk 0:02:01.5]} 17... hxg4 {[%clk 0:02:35.5]} 18. Nd2 {[%clk
0:01:58.7]} 18... dxc5 {[%clk 0:02:32.7]} 19. bxc5 {[%clk 0:01:58.6]} 19... Nxc5
{[%clk 0:02:32.9]} 20. e4 {[%clk 0:01:48.4]} 20... f4 {[%clk 0:01:24.2]} 21.
Bxg4 {[%clk 0:01:42.6]} 21... Ra6 {[%clk 0:01:11]} 22. Bxc8 {[%clk 0:01:18.1]}
22... Qxc8 {[%clk 0:01:08.5]} 23. Nb5 {[%clk 0:01:18.3]} 23... Nbd7 {[%clk
0:00:57.8]} 24. d6 {[%clk 0:01:06.1]} 24... c6 {[%clk 0:00:42.7]} 25. Nc7 {[%clk
0:01:04.9]} 25... Ra2 {[%clk 0:00:37.9]} 26. Qh5+ {[%clk 0:00:59.1]} 26... Kg8
{[%clk 0:00:37.1]} 27. Nf3 {[%clk 0:00:59.4]} 27... Nf6 {[%clk 0:00:35.5]} 28.
Qg6 {[%clk 0:00:42.6]} 28... Ncxe4 {[%clk 0:00:30.9]} 29. Nxe5 {[%clk
0:00:35.7]} 29... Nxd6 {[%clk 0:00:30.7]} 30. Nd5 {[%clk 0:00:20.6]} 30... Nxd5
{[%clk 0:00:21.3]} 31. Qxd6 {[%clk 0:00:20.7]} 31... Rd8 {[%clk 0:00:20.4]} 32.
Qg6 {[%clk 0:00:15.4]} 32... Rf8 {[%clk 0:00:16.3]} 33. Ng4 {[%clk 0:00:14.4]}
33... Ne7 {[%clk 0:00:13.6]} 34. Nh6+ {[%clk 0:00:13.6]} 34... Kh8 {[%clk
0:00:14.2]} 35. Nf7+ {[%clk 0:00:13.9]} 35... Kg8 {[%clk 0:00:13]} 36. Nh6+
{[%clk 0:00:13.8]} 36... Kh8 {[%clk 0:00:13.1]} 37. Nf7+ {[%clk 0:00:14]} 37...
Rxf7 {[%clk 0:00:09.5]} 38. Qxf7 {[%clk 0:00:14.2]} 38... Re2 {[%clk 0:00:08.1]}
39. Rfe1 {[%clk 0:00:13.7]} 39... Rxe1+ {[%clk 0:00:07.9]} 40. Rxe1 {[%clk
0:00:13.9]} 40... Bf8 {[%clk 0:00:08.1]} 41. Re5 {[%clk 0:00:11.9]} 41... Ng8
{[%clk 0:00:01.9]} 42. Rh5+ {[%clk 0:00:09.7]} 42... Bh6 {[%clk 0:00:02.8]} 43.
Bxf4 {[%clk 0:00:10.1]} 43... Qg4 {[%clk 0:00:02.1]} 44. Bxh6 {[%clk 0:00:08.1]}
44... Qd1+ {[%clk 0:00:02.8]} 45. Kh2 {[%clk 0:00:08.1]} 45... Qd6+ {[%clk
0:00:03.7]} 46. Bf4+ {[%clk 0:00:07.5]} 46... Nh6 {[%clk 0:00:03.1]} 47. Rxh6+
{[%clk 0:00:07.6]} 47... Qxh6+ {[%clk 0:00:02.4]} 48. Bxh6 {[%clk 0:00:08]} 1-0

[Event "Early-Titled-Tuesday-Blitz-September-05-2023"]
[Site "Chess.com"]
[Date "2023.09.05"]
[Round "1"]
[White "CristianS27"]
[Black "sergiochess83"]
[Result "0-1"]
[WhiteElo "2509"]
[BlackElo "2946"]
[TimeControl "180+1"]
[EndTime "8:07:57 PDT"]
[Termination "sergiochess83 won by checkmate"]

1. e4 {[%clk 0:02:54.7]} 1... c5 {[%clk 0:03:00]} 2. Nf3 {[%clk 0:02:53.1]} 2...
Nc6 {[%clk 0:03:00.1]} 3. d4 {[%clk 0:02:50.6]} 3... cxd4 {[%clk 0:03:00.3]} 4.
Nxd4 {[%clk 0:02:51.5]} 4... Nf6 {[%clk 0:02:59.9]} 5. Nc3 {[%clk 0:02:52]} 5...
e6 {[%clk 0:03:00.6]} 6. a3 {[%clk 0:02:48.3]} 6... Be7 {[%clk 0:02:55.8]} 7.
Be2 {[%clk 0:02:39.8]} 7... O-O {[%clk 0:02:51.8]} 8. O-O {[%clk 0:02:39.7]}
8... d6 {[%clk 0:02:50.7]} 9. Be3 {[%clk 0:02:39.1]} 9... e5 {[%clk 0:02:45.4]}
10. Nf3 {[%clk 0:02:27.5]} 10... h6 {[%clk 0:02:39.4]} 11. Bc4 {[%clk 0:02:26]}
11... Be6 {[%clk 0:02:37.7]} 12. Bb3 {[%clk 0:02:24.8]} 12... Na5 {[%clk
0:02:34.4]} 13. Ba2 {[%clk 0:02:20.8]} 13... Nc4 {[%clk 0:02:33.5]} 14. Bxc4
{[%clk 0:02:19.7]} 14... Bxc4 {[%clk 0:02:34.4]} 15. Re1 {[%clk 0:02:20.4]}
15... Be6 {[%clk 0:02:26.4]} 16. Qe2 {[%clk 0:01:59.8]} 16... Qc7 {[%clk
0:02:23.9]} 17. Red1 {[%clk 0:01:57]} 17... Qc6 {[%clk 0:02:22.6]} 18. Nd2
{[%clk 0:01:53]} 18... Rfc8 {[%clk 0:02:22.3]} 19. h3 {[%clk 0:01:46.2]} 19...
a6 {[%clk 0:02:16.2]} 20. Qf3 {[%clk 0:01:45.9]} 20... b5 {[%clk 0:02:14.4]} 21.
Rac1 {[%clk 0:01:43.3]} 21... a5 {[%clk 0:02:11]} 22. Nf1 {[%clk 0:01:35.3]}
22... b4 {[%clk 0:02:10]} 23. Nd5 {[%clk 0:01:35.8]} 23... Bxd5 {[%clk
0:01:37.2]} 24. exd5 {[%clk 0:01:36.7]} 24... Qc4 {[%clk 0:01:36.7]} 25. axb4
{[%clk 0:01:31.8]} 25... Qxb4 {[%clk 0:01:36.2]} 26. Ng3 {[%clk 0:01:23.6]}
26... Nh7 {[%clk 0:00:34.3]} 27. Nf5 {[%clk 0:01:17.4]} 27... Bf8 {[%clk
0:00:34.5]} 28. Qg3 {[%clk 0:01:01.1]} 28... Kh8 {[%clk 0:00:34.1]} 29. b3
{[%clk 0:00:43.5]} 29... Qe4 {[%clk 0:00:34.2]} 30. Qg4 {[%clk 0:00:41.6]} 30...
Nf6 {[%clk 0:00:34.3]} 31. Qxe4 {[%clk 0:00:36]} 31... Nxe4 {[%clk 0:00:35.2]}
32. c4 {[%clk 0:00:33.7]} 32... h5 {[%clk 0:00:31]} 33. f3 {[%clk 0:00:29.3]}
33... Nc5 {[%clk 0:00:29.7]} 34. Rb1 {[%clk 0:00:18.1]} 34... g6 {[%clk
0:00:29.5]} 35. Ng3 {[%clk 0:00:17.6]} 35... f5 {[%clk 0:00:29.7]} 36. f4 {[%clk
0:00:18.1]} 36... Bg7 {[%clk 0:00:28.1]} 37. Ne2 {[%clk 0:00:14.9]} 37... Ne4
{[%clk 0:00:27.8]} 38. fxe5 {[%clk 0:00:14]} 38... Bxe5 {[%clk 0:00:27.5]} 39.
Rbc1 {[%clk 0:00:10.7]} 39... Kh7 {[%clk 0:00:26.7]} 40. Bd4 {[%clk 0:00:10.7]}
40... Bg7 {[%clk 0:00:18.7]} 41. Bxg7 {[%clk 0:00:10.3]} 41... Kxg7 {[%clk
0:00:19.6]} 42. Nd4 {[%clk 0:00:11.1]} 42... Kf6 {[%clk 0:00:19.7]} 43. Ne6
{[%clk 0:00:09.7]} 43... Nc5 {[%clk 0:00:18.4]} 44. Nxc5 {[%clk 0:00:07.5]}
44... Rxc5 {[%clk 0:00:19.3]} 45. Re1 {[%clk 0:00:08.2]} 45... Ra6 {[%clk
0:00:19.7]} 46. Re6+ {[%clk 0:00:08]} 46... Kg5 {[%clk 0:00:20.3]} 47. g3 {[%clk
0:00:08.1]} 47... Rb6 {[%clk 0:00:19.3]} 48. Rc3 {[%clk 0:00:06.1]} 48... a4
{[%clk 0:00:17.2]} 49. bxa4 {[%clk 0:00:07]} 49... Ra5 {[%clk 0:00:15.6]} 50.
h4+ {[%clk 0:00:05.6]} 50... Kh6 {[%clk 0:00:15.2]} 51. Rce3 {[%clk 0:00:01.8]}
51... Rxa4 {[%clk 0:00:12.4]} 52. Re7 {[%clk 0:00:01.7]} 52... Ra1+ {[%clk
0:00:12.5]} 53. Kg2 {[%clk 0:00:01.7]} 53... Rb2+ {[%clk 0:00:13.1]} 54. Kf3
{[%clk 0:00:02.4]} 54... Rf1# {[%clk 0:00:13.1]} 0-1

[Event "Early-Titled-Tuesday-Blitz-September-05-2023"]
[Site "Chess.com"]
[Date "2023.09.05"]
[Round "1"]
[White "Massakru"]
[Black "Kirill_Klukin"]
[Result "0-1"]
[WhiteElo "2441"]
[BlackElo "2802"]
[TimeControl "180+1"]
[EndTime "8:08:00 PDT"]
[Termination "Kirill_Klukin won on time"]

1. e4 {[%clk 0:03:00.9]} 1... d6 {[%clk 0:02:57.6]} 2. d4 {[%clk 0:03:00.5]}
2... f5 {[%clk 0:02:54.4]} 3. Bd3 {[%clk 0:02:53.8]} 3... fxe4 {[%clk
0:02:37.1]} 4. Bxe4 {[%clk 0:02:52.1]} 4... Nf6 {[%clk 0:02:37.7]} 5. Bd3 {[%clk
0:02:50.2]} 5... g6 {[%clk 0:02:36.7]} 6. Nf3 {[%clk 0:02:46.2]} 6... Bg7 {[%clk
0:02:36.1]} 7. O-O {[%clk 0:02:38.2]} 7... O-O {[%clk 0:02:35.7]} 8. c3 {[%clk
0:02:31.3]} 8... Nc6 {[%clk 0:02:32.7]} 9. Re1 {[%clk 0:02:29.8]} 9... Bg4
{[%clk 0:02:30.2]} 10. h3 {[%clk 0:02:25.3]} 10... Bxf3 {[%clk 0:02:27.6]} 11.
Qxf3 {[%clk 0:02:26.2]} 11... e5 {[%clk 0:02:28.1]} 12. Bc4+ {[%clk 0:01:59.8]}
12... Kh8 {[%clk 0:02:02.9]} 13. dxe5 {[%clk 0:01:45.5]} 13... Nxe5 {[%clk
0:02:02.2]} 14. Qe2 {[%clk 0:01:44.3]} 14... Qd7 {[%clk 0:01:52.3]} 15. Be3
{[%clk 0:01:38.3]} 15... Rae8 {[%clk 0:01:49]} 16. Nd2 {[%clk 0:01:35.1]} 16...
Nxc4 {[%clk 0:01:33.1]} 17. Qxc4 {[%clk 0:01:31.1]} 17... a6 {[%clk 0:01:29.8]}
18. Rad1 {[%clk 0:01:25.4]} 18... Qc6 {[%clk 0:01:14.1]} 19. Qxc6 {[%clk
0:01:20.1]} 19... bxc6 {[%clk 0:01:13.9]} 20. Bd4 {[%clk 0:01:20.6]} 20... Kg8
{[%clk 0:01:10.8]} 21. Bxf6 {[%clk 0:01:19.3]} 21... Bxf6 {[%clk 0:01:10.6]} 22.
Rxe8 {[%clk 0:01:16.9]} 22... Rxe8 {[%clk 0:01:11.5]} 23. Kf1 {[%clk 0:01:16]}
23... Kf7 {[%clk 0:01:11.2]} 24. Nf3 {[%clk 0:01:12.6]} 24... Rb8 {[%clk
0:01:10.8]} 25. Rd2 {[%clk 0:01:12.6]} 25... c5 {[%clk 0:01:09.1]} 26. Ke2
{[%clk 0:01:10]} 26... Ke6 {[%clk 0:01:07.5]} 27. Kd3 {[%clk 0:01:07.9]} 27...
Kd7 {[%clk 0:01:05.9]} 28. b3 {[%clk 0:01:06.2]} 28... a5 {[%clk 0:01:04.9]} 29.
Re2 {[%clk 0:01:00.7]} 29... Ra8 {[%clk 0:00:40.7]} 30. Nd2 {[%clk 0:00:56.2]}
30... a4 {[%clk 0:00:38.7]} 31. b4 {[%clk 0:00:48.7]} 31... cxb4 {[%clk
0:00:36.1]} 32. cxb4 {[%clk 0:00:49.6]} 32... Kc6 {[%clk 0:00:27]} 33. a3 {[%clk
0:00:47.1]} 33... Kd7 {[%clk 0:00:16.5]} 34. Ne4 {[%clk 0:00:39]} 34... Be5
{[%clk 0:00:14.2]} 35. g3 {[%clk 0:00:34.8]} 35... Re8 {[%clk 0:00:09.7]} 36. f4
{[%clk 0:00:34.5]} 36... Bg7 {[%clk 0:00:10.4]} 37. g4 {[%clk 0:00:20.4]} 37...
Rf8 {[%clk 0:00:08.9]} 38. Rf2 {[%clk 0:00:17.3]} 38... h6 {[%clk 0:00:09.1]}
39. f5 {[%clk 0:00:16.6]} 39... gxf5 {[%clk 0:00:10]} 40. gxf5 {[%clk
0:00:16.1]} 40... Be5 {[%clk 0:00:10.6]} 41. Rf3 {[%clk 0:00:13.7]} 41... Bb2
{[%clk 0:00:08.7]} 42. Kc2 {[%clk 0:00:11.9]} 42... Be5 {[%clk 0:00:08]} 43. Nd2
{[%clk 0:00:11.6]} 43... d5 {[%clk 0:00:07.2]} 44. Nf1 {[%clk 0:00:09.3]} 44...
Kd6 {[%clk 0:00:07.2]} 45. Kd3 {[%clk 0:00:09.1]} 45... c5 {[%clk 0:00:05.4]}
46. bxc5+ {[%clk 0:00:08.2]} 46... Kxc5 {[%clk 0:00:06.3]} 47. Ne3 {[%clk
0:00:08.4]} 47... Rb8 {[%clk 0:00:06.8]} 48. Ke2 {[%clk 0:00:08.1]} 48... Rb2+
{[%clk 0:00:06.7]} 49. Kf1 {[%clk 0:00:07.7]} 49... Rb3 {[%clk 0:00:06.9]} 50.
Kg2 {[%clk 0:00:06.4]} 50... Rxa3 {[%clk 0:00:07.1]} 51. f6 {[%clk 0:00:06.4]}
51... Bxf6 {[%clk 0:00:07.5]} 52. Nxd5 {[%clk 0:00:02.8]} 52... Rxf3 {[%clk
0:00:06.8]} 0-1